fUSD/lending_fUSD_20250403
["ID","MTS","AMOUNT","RATE_DAILY","PERIOD"]
[357076106,1743692648495,-520.1686547,0.00049589,120]
[357076107,1743692648546,-521.87269417,0.00049589,120]
[357076108,1743692648592,-503.68892052,0.00049589,120]
[357076109,1743692648640,-528.53158163,0.00049589,120]
[357076110,1743692648686,-525.18539065,0.00049589,120]
[357076111,1743692648733,-509.11781993,0.00049589,120]
[357076112,1743692648777,-525.54935468,0.00049589,120]
[357076113,1743692648824,-507.6364319,0.00049589,120]
[357076114,1743692648870,-500.0,0.00049589,120]
[357076115,1743692648918,-529.3025103,0.00049589,120]
[357076116,1743692648964,-535.9994358,0.00049589,120]
[357076117,1743692649010,-500.0,0.00049589,120]
[357076118,1743692649057,-520.78255575,0.00049589,120]
[357076119,1743692649109,-521.06266163,0.00049589,120]
[357076120,1743692649158,-522.35619635,0.00049589,120]
[357076121,1743692649205,-549.170064,0.00049589,120]
[357076122,1743692649256,-551.11720719,0.00049589,120]
[357076123,1743692649307,-531.28159788,0.00049589,120]
[357076124,1743692649359,-510.76432141,0.00049589,120]
[357076125,1743692649409,-500.0,0.00049589,120]
[357076126,1743692649460,-549.10843666,0.00049589,120]
[357076127,1743692649511,-1188.35,0.00049589,120]
[357076128,1743692649560,-534.82017507,0.00049589,120]
[357076129,1743692649608,-511.90025202,0.00049589,120]
[357076130,1743692649788,-512.25614902,0.00049589,120]
[357076131,1743692649837,-508.09830604,0.00049589,120]
[357076132,1743692649885,-508.5668268,0.00049589,120]
[357076133,1743692649933,-500.0,0.00049589,120]
[357076134,1743692649980,-507.16795131,0.00049589,120]
[357076135,1743692650030,-500.0,0.00049589,120]
[357076136,1743692650075,-505.24699779,0.00049589,120]
[357076137,1743692650121,-514.38891596,0.00049589,120]
[357076138,1743692650166,-512.06289757,0.00049589,120]
[357076139,1743692650211,-500.0,0.00049589,120]
[357076140,1743692650260,-203.40746381,0.00049589,120]
[357076141,1743692650310,-500.0,0.00049589,120]
[357076142,1743692650359,-500.0,0.00049589,120]
[357076143,1743692650407,-500.0,0.00049589,120]
[357076144,1743692650454,-496.19528604,0.00049589,120]
[357076145,1743692650502,-511.50382285,0.00049589,120]
[357076146,1743692650547,-500.0,0.00049589,120]
[357076147,1743692650595,-500.0,0.00049589,120]
[357076148,1743692650658,-506.32835602,0.00049589,120]
[357076149,1743692650710,-500.0,0.00049589,120]
[357076150,1743692650758,-319.18552332,0.00049589,120]
[357076151,1743692650806,-500.0,0.00049589,120]
[357076152,1743692650853,-500.0,0.00049589,120]
[357076153,1743692650903,-514.5124168,0.00049589,120]
[357076154,1743692650950,-193.29169861,0.00049589,120]
[357076155,1743692650998,-500.0,0.00049589,120]
[357076156,1743692651047,-500.0,0.00049589,120]
[357076157,1743692651095,-573.45901184,0.00049589,120]
[357076158,1743692651141,-500.0,0.00049589,120]
[357076159,1743692651188,-508.64927285,0.00049589,120]
[357076160,1743692651235,-508.3772146,0.00049589,120]
[357076161,1743692651289,-512.84906096,0.00049589,120]
[357076162,1743692651336,-508.73278111,0.00049589,120]
[357076163,1743692651383,-515.82542854,0.00049589,120]
[357076164,1743692651428,-500.0,0.00049589,120]
[357076165,1743692651472,-526.06864251,0.00049589,120]
[357076166,1743692651517,-500.0,0.00049589,120]
[357076167,1743692651565,-508.33119574,0.00049589,120]
[357076168,1743692651614,-508.9363554,0.00049589,120]
[357076169,1743692651664,-366.40473988,0.00049589,120]
[357076170,1743692651712,-500.0,0.00049589,120]
[357076171,1743692651758,-500.0,0.00049589,120]
[357076172,1743692651805,-314.11058902,0.00049589,120]
[357076173,1743692651854,-500.0,0.00049589,120]
[357076174,1743692651904,-531.01948887,0.00049589,120]
[357076175,1743692651956,-502.74481728,0.00049589,120]
[357076176,1743692652012,-381.34679833,0.00049589,120]
[357076177,1743692652065,-500.0,0.00049589,120]
[357076178,1743692652115,-511.04565305,0.00049589,120]
[357076179,1743692652163,-504.8821852,0.00049589,120]
[357076180,1743692652209,-507.28230979,0.00049589,120]
[357076181,1743692652256,-338.62534879,0.00049589,60]
[357076182,1743692652302,-512.29,0.00049589,120]
[357076183,1743692652346,-500.0,0.00049589,120]
[357076184,1743692652391,-510.34967535,0.00049589,120]
[357076185,1743692652437,-511.00248386,0.00049589,120]
[357076186,1743692652483,-509.1029212,0.00049589,120]
[357076187,1743692652526,-514.24452033,0.00049589,120]
[357076188,1743692652571,-507.6875522,0.00049589,120]
[357076189,1743692652618,-500.0,0.00049589,120]
[357076190,1743692652783,-518.21123412,0.00049589,120]
[357076191,1743692652825,-500.0,0.00049589,120]
[357076192,1743692652869,-500.0,0.00049589,120]
[357076193,1743692652912,-508.07757563,0.00049589,120]
[357076194,1743692652959,-500.0,0.00049589,120]
[357076195,1743692653007,-500.0,0.00049589,120]
[357076196,1743692653054,-508.74451716,0.00049589,120]
[357076197,1743692653099,-506.23229075,0.00049589,120]
[357076198,1743692653140,-500.0,0.00049589,120]
[357076199,1743692653183,-508.5129482,0.00049589,120]
[357076200,1743692653226,-500.0,0.00049589,120]
[357076201,1743692653269,-500.0,0.00049589,120]
[357076202,1743692653314,-500.0,0.00049589,120]
[357076203,1743692653361,-502.51419781,0.00049589,120]
[357076204,1743692653407,-500.0,0.00049589,120]
[357076205,1743692653455,-500.0,0.00049589,120]
[357076206,1743692653497,-500.0,0.00049589,120]
[357076207,1743692653544,-505.70712636,0.00049589,120]
[357076208,1743692653587,-500.0,0.00049589,120]
[357076209,1743692653630,-500.0,0.00049589,120]
[357076210,1743692653674,-210.59411036,0.00049589,120]
[357076211,1743692653716,-500.0,0.00049589,120]
[357076212,1743692653763,-500.0,0.00049589,120]
[357076213,1743692653807,-329.06659597,0.00049589,120]
[357076214,1743692653854,-500.0,0.00049589,120]
[357076215,1743692653900,-512.44872612,0.00049589,120]
[357076216,1743692653949,-500.0,0.00049589,120]
[357076217,1743692653995,-202.01673901,0.00049589,120]
[357076218,1743692654045,-500.0,0.00049589,120]
[357076219,1743692654091,-503.96519607,0.00049589,120]
[357076220,1743692654136,-2515.07,0.00049589,120]
[357076221,1743692654183,-500.0,0.00049589,120]
[357076222,1743692654230,-500.0,0.00049589,120]
[357076223,1743692654280,-500.0,0.00049589,120]
[357076224,1743692654328,-503.67973562,0.00049589,120]
[357076225,1743692654376,-507.37993912,0.00049589,120]
[357076226,1743692654424,-500.0,0.00049589,120]
[357076227,1743692654469,-500.0,0.00049589,120]
[357076228,1743692654516,-500.0,0.00049589,120]
[357076229,1743692654565,-500.0,0.00049589,120]
[357076230,1743692654613,-500.0,0.00049589,120]
[357076231,1743692654665,-3304.66,0.00049589,120]
[357076232,1743692654712,-507.33882636,0.00049589,120]
[357076233,1743692654760,-500.0,0.00049589,120]
[357076234,1743692654810,-500.0,0.00049589,120]
[357076235,1743692654858,-509.69406556,0.00049589,120]
[357076236,1743692654907,-500.0,0.00049589,120]
[357076237,1743692654955,-500.0,0.00049589,120]
[357076238,1743692655007,-500.0,0.00049589,120]
[357076239,1743692655055,-500.0,0.00049589,120]
[357076240,1743692655104,-2262.66,0.00049589,120]
[357076241,1743692655149,-500.0,0.00049589,120]
[357076242,1743692655197,-500.0,0.00049589,120]
[357076243,1743692655242,-492.88030247,0.00049589,120]
[357076244,1743692655288,-500.0,0.00049589,120]
[357076245,1743692655334,-508.66218002,0.00049589,120]
[357076246,1743692655380,-500.0,0.00049589,120]
[357076247,1743692655557,-500.0,0.00049589,120]
[357076248,1743692655607,-500.0,0.00049589,120]
[357076249,1743692655659,-500.0,0.00049589,120]
[357076250,1743692655710,-509.90566901,0.00049589,120]
[357076251,1743692655760,-269.79492127,0.00049589,120]
[357076252,1743692655805,-500.0,0.00049589,120]
[357076253,1743692655852,-500.0,0.00049589,120]
[357076254,1743692655897,-500.0,0.00049589,120]
[357076255,1743692655942,-2546.13,0.00049589,120]
[357076256,1743692655988,-500.0,0.00049589,120]
[357076257,1743692656034,-500.0,0.00049589,120]
[357076258,1743692656080,-500.0,0.00049589,120]
[357076259,1743692656125,-500.0,0.00049589,120]
[357076260,1743692656172,-500.0,0.00049589,120]
[357076261,1743692656218,-500.0,0.00049589,120]
[357076262,1743692656266,-500.0,0.00049589,120]
[357076263,1743692656312,-937.33,0.00049589,120]
[357076264,1743692656359,-500.0,0.00049589,120]
[357076265,1743692656404,-500.0,0.00049589,120]
[357076266,1743692656449,-512.05,0.00049589,120]
[357076267,1743692656493,-498.80020078,0.00049589,120]
[357076268,1743692656539,-666.57,0.00049589,120]
[357076269,1743692656586,-500.0,0.00049589,120]
[357076270,1743692656631,-518.10017954,0.00049589,120]
[357076271,1743692656677,-500.0,0.00049589,120]
[357076272,1743692656724,-500.0,0.00049589,120]
[357076273,1743692656771,-500.0,0.00049589,120]
[357076274,1743692656818,-522.56421315,0.00049589,120]
[357076275,1743692656865,-500.0,0.00049589,120]
[357076276,1743692656911,-2639.66,0.00049589,120]
[357076277,1743692656959,-500.0,0.00049589,120]
[357076278,1743692657006,-500.0,0.00049589,120]
[357076279,1743692657053,-508.44746318,0.00049589,120]
[357076280,1743692657100,-580.54255325,0.00049589,120]
[357076281,1743692657147,-622.29639171,0.00049589,120]
[357076282,1743692657193,-2949.52,0.00049589,120]
[357076283,1743692657237,-513.13816779,0.00049589,120]
[357076284,1743692657286,-569.38641109,0.00049589,120]
[357076285,1743692657330,-500.0,0.00049589,120]
[357076286,1743692657377,-500.0,0.00049589,120]
[357076287,1743692657424,-500.0,0.00049589,120]
[357076288,1743692657470,-500.0,0.00049589,120]
[357076289,1743692657516,-500.0,0.00049589,120]
[357076290,1743692657564,-1400.4,0.00049589,120]
[357076291,1743692657611,-500.0,0.00049589,120]
[357076292,1743692657661,-156.99484576,0.00049589,120]
[357076293,1743692657708,-500.0,0.00049589,120]
[357076294,1743692657753,-500.0,0.00049589,120]
[357076295,1743692657800,-1000.0,0.00049589,120]
[357076296,1743692657845,-500.0,0.00049589,120]
[357076297,1743692657891,-1157.71,0.00049589,30]
[357076298,1743692657937,-500.0,0.00049589,120]
[357076299,1743692657983,-500.0,0.00049589,120]
[357076300,1743692658029,-500.0,0.00049589,120]
[357076301,1743692658077,-525.82529153,0.00049589,120]
[357076302,1743692658126,-500.0,0.00049589,120]
[357076303,1743692658314,-500.0,0.00049589,120]
[357076304,1743692658362,-500.0,0.00049589,120]
[357076305,1743692658408,-500.0,0.00049589,120]
[357076306,1743692658455,-500.0,0.00049589,120]
[357076307,1743692658503,-500.0,0.00049589,120]
[357076308,1743692658552,-500.0,0.00049589,120]
[357076309,1743692658600,-500.0,0.00049589,120]
[357076310,1743692658646,-519.66548125,0.00049589,120]
[357076311,1743692658693,-503.40485772,0.00049589,120]
[357076312,1743692658743,-500.0,0.00049589,120]
[357076313,1743692658791,-2465.07,0.00049589,120]
[357076314,1743692658839,-500.0,0.00049589,120]
[357076315,1743692658887,-2536.68,0.00049589,120]
[357076316,1743692658936,-500.0,0.00049589,120]
[357076317,1743692658985,-500.0,0.00049589,120]
[357076318,1743692659037,-584.00807687,0.00049589,120]
[357076319,1743692659090,-500.0,0.00049589,120]
[357076320,1743692659147,-500.0,0.00049589,120]
[357076321,1743692659206,-500.0,0.00049589,120]
[357076322,1743692659264,-531.96770291,0.00049589,120]
[357076323,1743692659318,-500.0,0.00049589,120]
[357076324,1743692659372,-574.61779129,0.00049589,120]
[357076325,1743692659423,-532.79705985,0.00049589,120]
[357076326,1743692659474,-1614.37,0.00049589,120]
[357076327,1743692659526,-500.0,0.00049589,120]
[357076328,1743692659575,-500.0,0.00049589,120]
[357076329,1743692659640,-2406.67,0.00049589,120]
[357076330,1743692659694,-500.0,0.00049589,120]
[357076331,1743692659746,-500.0,0.00049589,120]
[357076332,1743692659795,-2530.16,0.00049589,120]
[357076333,1743692659845,-500.0,0.00049589,120]
[357076334,1743692659893,-500.0,0.00049589,120]
[357076335,1743692659940,-500.0,0.00049589,120]
[357076336,1743692659989,-500.0,0.00049589,120]
[357076337,1743692660036,-3193.62,0.00049589,120]
[357076338,1743692660084,-500.0,0.00049589,120]
[357076339,1743692660133,-500.0,0.00049589,120]
[357076340,1743692660182,-500.0,0.00049589,120]
[357076341,1743692660230,-528.04825307,0.00049589,120]
[357076342,1743692660277,-500.0,0.00049589,120]
[357076343,1743692660330,-500.0,0.00049589,120]
[357076344,1743692660384,-3486.67,0.00049589,120]
[357076345,1743692660433,-2824.78,0.00049589,120]
[357076346,1743692660482,-711.98,0.00049589,120]
[357076347,1743692660531,-500.0,0.00049589,120]
[357076348,1743692660576,-500.0,0.00049589,120]
[357076349,1743692660624,-500.0,0.00049589,120]
[357076350,1743692660671,-500.0,0.00049589,120]
[357076351,1743692660723,-500.0,0.00049589,120]
[357076352,1743692660772,-524.72783971,0.00049589,120]
[357076353,1743692660824,-512.2155153,0.00049589,120]
[357076354,1743692660872,-500.0,0.00049589,120]
[357076355,1743692660922,-500.0,0.00049589,120]
[357076356,1743692660970,-500.0,0.00049589,120]
[357076357,1743692661189,-2511.44,0.00049589,120]
[357076358,1743692661237,-506.96451926,0.00049589,120]
[357076359,1743692661285,-500.0,0.00049589,120]
[357076360,1743692661335,-500.0,0.00049589,120]
[357076361,1743692661384,-500.0,0.00049589,30]
[357076362,1743692661435,-3042.94,0.00049589,120]
[357076363,1743692661483,-2546.97,0.00049589,120]
[357076364,1743692661534,-500.0,0.00049589,120]
[357076365,1743692661582,-500.0,0.00049589,120]
[357076366,1743692661634,-500.0,0.00049589,120]
[357076367,1743692661685,-500.0,0.00049589,120]
[357076368,1743692661739,-500.0,0.00049589,120]
[357076369,1743692661789,-500.0,0.00049589,120]
[357076370,1743692661836,-500.0,0.00049589,120]
[357076371,1743692661890,-500.0,0.00049589,120]
[357076372,1743692661937,-500.0,0.00049589,120]
[357076373,1743692661984,-605.96899851,0.00049589,120]
[357076374,1743692662031,-500.0,0.00049589,120]
[357076375,1743692662078,-500.0,0.00049589,120]
[357076376,1743692662126,-637.70088055,0.00049589,120]
[357076377,1743692662175,-500.0,0.00049589,120]
[357076378,1743692662223,-591.52598288,0.00049589,120]
[357076379,1743692662271,-523.30237368,0.00049589,120]
[357076380,1743692662320,-2793.68,0.00049589,120]
[357076381,1743692662366,-500.0,0.00049589,120]
[357076382,1743692662411,-500.0,0.00049589,120]
[357076383,1743692662470,-500.0,0.00049589,120]
[357076384,1743692662546,-500.0,0.00049589,120]
[357076385,1743692662618,-500.0,0.00049589,120]
[357076386,1743692662691,-504.24955854,0.00049589,120]
[357076387,1743692662768,-500.0,0.00049589,120]
[357076388,1743692662833,-500.0,0.00049589,120]
[357076389,1743692662897,-500.0,0.00049589,120]
[357076390,1743692662961,-519.69168656,0.00049589,120]
[357076391,1743692663026,-500.0,0.00049589,120]
[357076392,1743692663094,-500.0,0.00049589,120]
[357076393,1743692663160,-3225.87,0.00049589,120]
[357076394,1743692663225,-189.46,0.00049589,120]
[357076395,1743692663292,-525.29328031,0.00049589,120]
[357076396,1743692663359,-500.0,0.00049589,120]
[357076397,1743692663428,-561.58,0.00049589,120]
[357076398,1743692663503,-3309.73,0.00049589,120]
[357076399,1743692663570,-500.0,0.00049589,120]
[357076400,1743692663641,-500.0,0.00049589,120]
[357076401,1743692663713,-1365.8,0.00049589,30]
[357076402,1743692663783,-500.0,0.00049589,120]
[357076403,1743692663851,-500.0,0.00049589,120]
[357076404,1743692663922,-3036.55,0.00049589,120]
[357076405,1743692663986,-406.49679183,0.00049589,120]
[357076406,1743692664051,-2595.67,0.00049589,120]
[357076407,1743692664116,-500.0,0.00049589,120]
[357076408,1743692664182,-1461.06,0.00049589,120]
[357076409,1743692664394,-500.0,0.00049589,120]
[357076410,1743692664444,-903.9,0.00049589,120]
[357076411,1743692664494,-3168.58,0.00049589,120]
[357076412,1743692664542,-500.0,0.00049589,120]
[357076413,1743692664589,-500.0,0.00049589,120]
[357076414,1743692664635,-500.0,0.00049589,120]
[357076415,1743692664681,-500.0,0.00049589,120]
[357076416,1743692664728,-500.0,0.00049589,120]
[357076417,1743692664773,-2366.98,0.00049589,120]
[357076418,1743692664821,-500.0,0.00049589,120]
[357076419,1743692664867,-699.06,0.00049589,120]
[357076420,1743692664918,-622.39931237,0.00049589,120]
[357076421,1743692664964,-500.0,0.00049589,120]
[357076422,1743692665010,-500.0,0.00049589,120]
[357076423,1743692665058,-500.0,0.00049589,120]
[357076424,1743692665104,-500.0,0.00049589,120]
[357076425,1743692665150,-2551.84,0.00049589,120]
[357076426,1743692665196,-500.0,0.00049589,120]
[357076427,1743692665243,-500.0,0.00049589,120]
[357076428,1743692665286,-500.0,0.00049589,120]
[357076429,1743692665330,-3427.7,0.00049589,120]
[357076430,1743692665376,-500.0,0.00049589,120]
[357076431,1743692665422,-500.0,0.00049589,120]
[357076432,1743692665469,-2545.19,0.00049589,120]
[357076433,1743692665516,-2360.98,0.00049589,120]
[357076434,1743692665560,-500.0,0.00049589,120]
[357076435,1743692665605,-2157.55,0.00049589,120]
[357076436,1743692665658,-500.0,0.00049589,120]
[357076437,1743692665709,-500.0,0.00049589,120]
[357076438,1743692665763,-1138.26,0.00049589,120]
[357076439,1743692665813,-160.85649976,0.00049589,120]
[357076440,1743692665871,-500.0,0.00049589,120]
[357076441,1743692665930,-500.0,0.00049589,120]
[357076442,1743692665982,-500.0,0.00049589,120]
[357076443,1743692666033,-500.0,0.00049589,120]
[357076444,1743692666087,-558.84624221,0.00049589,120]
[357076445,1743692666137,-500.0,0.00049589,120]
[357076446,1743692666189,-500.0,0.00049589,120]
[357076447,1743692666239,-500.0,0.00049589,120]
[357076448,1743692666290,-500.0,0.00049589,120]
[357076449,1743692666339,-500.0,0.00049589,120]
[357076450,1743692666390,-554.56674997,0.00049589,120]
[357076451,1743692666439,-2345.56,0.00049589,120]
[357076452,1743692666489,-500.0,0.00049589,120]
[357076453,1743692666543,-500.0,0.00049589,120]
[357076454,1743692666595,-500.0,0.00049589,120]
[357076455,1743692666646,-500.0,0.00049589,120]
[357076456,1743692666700,-500.0,0.00049589,120]
[357076457,1743692666750,-677.86,0.00049589,120]
[357076458,1743692666802,-2876.09,0.00049589,120]
[357076459,1743692666851,-500.0,0.00049589,120]
[357076460,1743692666900,-500.0,0.00049589,120]
[357076461,1743692666950,-500.0,0.00049589,120]
[357076462,1743692666998,-533.27932591,0.00049589,120]
[357076463,1743692667046,-500.0,0.00049589,120]
[357076464,1743692667094,-500.0,0.00049589,120]
[357076465,1743692667141,-500.0,0.00049589,120]
[357076466,1743692667189,-500.0,0.00049589,120]
[357076467,1743692667238,-500.0,0.00049589,120]
[357076468,1743692667284,-500.0,0.00049589,120]
[357076469,1743692667330,-624.21,0.00049589,120]
[357076470,1743692667375,-573.43046427,0.00049589,120]
[357076471,1743692667426,-516.902453,0.00049589,60]
[357076472,1743692667474,-500.0,0.00049589,120]
[357076473,1743692667526,-500.0,0.00049589,120]
[357076474,1743692667572,-500.0,0.00049589,120]
[357076475,1743692667619,-500.0,0.00049589,120]
[357076476,1743692667669,-500.0,0.00049589,120]
[357076477,1743692667853,-500.0,0.00049589,120]
[357076478,1743692667900,-2468.01,0.00049589,120]
[357076479,1743692667946,-500.0,0.00049589,120]
[357076480,1743692667990,-539.62836548,0.00049589,120]
[357076481,1743692668037,-559.54357282,0.00049589,120]
[357076482,1743692668085,-2420.85,0.00049589,120]
[357076483,1743692668132,-500.0,0.00049589,120]
[357076484,1743692668177,-2398.8,0.00049589,120]
[357076485,1743692668223,-654.52,0.00049589,120]
[357076486,1743692668268,-2194.1,0.00049589,120]
[357076487,1743692668317,-500.0,0.00049589,120]
[357076488,1743692668364,-500.0,0.00049589,120]
[357076489,1743692668410,-500.0,0.00049589,120]
[357076490,1743692668458,-500.0,0.00049589,120]
[357076491,1743692668505,-500.0,0.00049589,120]
[357076492,1743692668556,-500.0,0.00049589,100]
[357076493,1743692668603,-3237.94,0.00049589,120]
[357076494,1743692668650,-2316.04,0.00049589,120]
[357076495,1743692668698,-500.0,0.00049589,120]
[357076496,1743692668749,-644.46126655,0.00049589,120]
[357076497,1743692668797,-500.0,0.00049589,120]
[357076498,1743692668847,-500.0,0.00049589,120]
[357076499,1743692668895,-500.0,0.00049589,120]
[357076500,1743692668946,-500.0,0.00049589,120]
[357076501,1743692668998,-635.05371253,0.00049589,120]
[357076502,1743692669050,-500.0,0.00049589,120]
[357076503,1743692669103,-571.40048426,0.00049589,120]
[357076504,1743692669155,-2658.41,0.00049589,120]
[357076505,1743692669205,-543.72636843,0.00049589,120]
[357076506,1743692669255,-952.95,0.00049589,120]
[357076507,1743692669308,-1015.91,0.00049589,120]
[357076508,1743692669357,-598.33019427,0.00049589,120]
[357076509,1743692669407,-507.65502152,0.00049589,120]
[357076510,1743692669453,-2898.35,0.00049589,120]
[357076511,1743692669500,-532.51832009,0.00049589,120]
[357076512,1743692669545,-500.0,0.00049589,120]
[357076513,1743692669592,-500.0,0.00049589,120]
[357076514,1743692669637,-555.84688315,0.00049589,120]
[357076515,1743692669682,-500.0,0.00049589,120]
[357076516,1743692669728,-2878.83,0.00049589,120]
[357076517,1743692669775,-538.66446821,0.00049589,120]
[357076518,1743692669822,-500.0,0.00049589,120]
[357076519,1743692669870,-500.0,0.00049589,120]
[357076520,1743692669920,-3174.55,0.00049589,120]
[357076521,1743692669967,-313.7332391,0.00049589,120]
[357076522,1743692670014,-2385.728061,0.00049589,120]
[357076523,1743692670061,-4542.34,0.00049589,120]
[357076524,1743692670108,-529.64028595,0.00049589,120]
[357076525,1743692670154,-500.0,0.00049589,120]
[357076526,1743692670203,-500.0,0.00049589,120]
[357076527,1743692670247,-581.02353476,0.00049589,120]
[357076528,1743692670293,-2315.84,0.00049589,120]
[357076529,1743692670338,-500.0,0.00049589,120]
[357076530,1743692670388,-500.0,0.00049589,120]
[357076531,1743692670432,-547.41056601,0.00049589,120]
[357076532,1743692670481,-2955.65,0.00049589,120]
[357076533,1743692670528,-506.79016174,0.00049589,120]
[357076534,1743692670576,-237.57090155,0.00049589,120]
[357076535,1743692670625,-500.0,0.00049589,120]
[357076536,1743692670674,-500.0,0.00049589,120]
[357076537,1743692670723,-841.89,0.00049589,120]
[357076538,1743692670774,-500.0,0.00049589,120]
[357076539,1743692670824,-500.0,0.00049589,120]
[357076540,1743692670871,-3202.74,0.00049589,120]
[357076541,1743692670919,-500.0,0.00049589,120]
[357076542,1743692670966,-500.0,0.00049589,120]
[357076543,1743692671126,-500.0,0.00049589,120]
[357076544,1743692671324,-176.4879,0.00049589,120]
[357076545,1743692671376,-3036.01,0.00049589,120]
[357076546,1743692671426,-500.0,0.00049589,120]
[357076547,1743692671472,-523.36935306,0.00049589,120]
[357076548,1743692671521,-500.0,0.00049589,120]
[357076549,1743692671572,-500.0,0.00049589,120]
[357076550,1743692671621,-500.0,0.00049589,120]
[357076551,1743692671672,-1625.45,0.00049589,120]
[357076552,1743692671721,-500.0,0.00049589,120]
[357076553,1743692671771,-500.0,0.00049589,120]
[357076554,1743692671824,-500.0,0.00049589,120]
[357076555,1743692671874,-2914.69,0.00049589,120]
[357076556,1743692671924,-500.0,0.00049589,120]
[357076557,1743692671973,-500.0,0.00049589,120]
[357076558,1743692672023,-500.0,0.00049589,120]
[357076559,1743692672076,-500.0,0.00049589,120]
[357076560,1743692672126,-500.0,0.00049589,120]
[357076561,1743692672184,-500.0,0.00049589,120]
[357076562,1743692672233,-533.38889569,0.00049589,120]
[357076563,1743692672280,-602.9,0.00049589,120]
[357076564,1743692672327,-2802.27,0.00049589,120]
[357076565,1743692672375,-500.0,0.00049589,120]
[357076566,1743692672425,-500.0,0.00049589,120]
[357076567,1743692672477,-390.52736727,0.00049589,120]
[357076568,1743692672524,-500.0,0.00049589,120]
[357076569,1743692672574,-500.0,0.00049589,120]
[357076570,1743692672622,-530.305768,0.00049589,120]
[357076571,1743692672672,-2921.81,0.00049589,120]
[357076572,1743692672718,-500.0,0.00049589,120]
[357076573,1743692672768,-500.0,0.00049589,120]
[357076574,1743692672816,-500.0,0.00049589,120]
[357076575,1743692672862,-500.0,0.00049589,120]
[357076576,1743692672906,-500.0,0.00049589,120]
[357076577,1743692672951,-1239.33,0.00049589,120]
[357076578,1743692672995,-856.26,0.00049589,120]
[357076579,1743692673045,-500.0,0.00049589,120]
[357076580,1743692673092,-2272.59,0.00049589,120]
[357076581,1743692673140,-500.0,0.00049589,120]
[357076582,1743692673186,-2580.12,0.00049589,120]
[357076583,1743692673234,-500.0,0.00049589,120]
[357076584,1743692673282,-2661.08,0.00049589,120]
[357076585,1743692673332,-500.0,0.00049589,120]
[357076586,1743692673382,-500.0,0.00049589,120]
[357076587,1743692673434,-500.0,0.00049589,120]
[357076588,1743692673485,-500.0,0.00049589,120]
[357076589,1743692673536,-500.0,0.00049589,120]
[357076590,1743692673586,-500.0,0.00049589,120]
[357076591,1743692673635,-500.0,0.00049589,120]
[357076592,1743692673683,-1837.94,0.00049589,120]
[357076593,1743692673729,-500.0,0.00049589,120]
[357076594,1743692673776,-566.24522797,0.00049589,120]
[357076595,1743692673823,-212.1931675,0.00049589,120]
[357076596,1743692673874,-500.0,0.00049589,120]
[357076597,1743692673920,-373.56683521,0.00049589,120]
[357076598,1743692673967,-2624.31,0.00049589,120]
[357076599,1743692674012,-2226.43,0.00049589,120]
[357076600,1743692674061,-550.90987855,0.00049589,120]
[357076601,1743692674109,-500.0,0.00049589,120]
[357076602,1743692674159,-500.0,0.00049589,120]
[357076603,1743692674209,-500.0,0.00049589,120]
[357076604,1743692674257,-534.07694785,0.00049589,120]
[357076605,1743692674306,-2754.91,0.00049589,120]